bitfinex/quotes_ETHUSD_20260310
["timestamp","ask_amount","ask_price","bid_price","bid_amount"]
[1773152106142,2.46260602,2016.8,2015.7,0.55711314]
[1773152106307,2.32748554,2017.0,2015.7,0.55711314]
[1773152106642,1.088,2017.0,2016.0,0.55711314]
[1773152106962,4.95849805,2017.2,2016.6,0.55711314]
[1773152106963,0.001,2017.2,2016.6,0.55711314]
[1773152107108,2.74274943,2017.9,2016.6,0.55711314]
[1773152107109,3.70162503,2017.8,2016.6,0.55711314]
[1773152107304,3.70162503,2017.8,2016.0,2.46260602]
[1773152107305,1.23921879,2017.4,2016.2,1.79706358]
[1773152107542,1.23921879,2017.4,2016.2,0.55711314]
[1773152107543,2.46260602,2017.2,2016.2,0.55711314]
[1773152108034,1.087,2017.2,2016.2,0.55711314]
[1773152108212,3.54960602,2017.2,2016.2,0.55711314]
[1773152108841,1.087,2017.3,2016.2,0.55711314]
[1773152109165,1.087,2017.3,2015.9,2.50014051]
[1773152109166,2.46260602,2016.9,2015.9,2.50014051]
[1773152109448,2.46260602,2016.3,2015.4,0.55711314]
[1773152109650,2.46260602,2016.3,2015.1,1.24058677]
[1773152109807,1.087,2016.4,2015.1,1.79769991]
[1773152110207,1.087,2016.4,2014.7,3.05725365]
[1773152110208,2.46260602,2015.9,2014.7,3.05725365]
[1773152110424,2.46260602,2015.6,2014.7,4.29812481]
[1773152110708,1.087,2015.9,2014.8,0.60674585]
[1773152110918,2.46260602,2016.3,2014.9,0.55711314]
[1773152111158,5.45562018,2016.6,2014.8,2.51223873]
[1773152111159,2.32658746,2016.8,2015.5,0.55711314]
[1773152111360,2.46260602,2016.6,2015.7,0.55711314]
[1773152111954,2.32658746,2016.8,2015.7,0.55711314]
[1773152112291,2.46260602,2016.0,2015.3,0.55711314]
[1773152112575,2.46260602,2016.0,2014.9,1.79781584]
[1773152112777,2.46260602,2016.3,2015.0,0.55711314]
[1773152112948,1.087,2016.2,2015.0,0.55711314]
[1773152113276,1.087,2016.2,2015.1,1.24063321]
[1773152113277,1.24007936,2016.0,2015.1,1.24063321]
[1773152113477,4.9598939,2016.2,2015.2,0.55711314]
[1773152113679,6.0468939,2016.2,2015.2,0.55711314]
[1773152114073,2.46260602,2016.0,2015.2,0.55711314]
[1773152114378,2.46260602,2015.4,2014.5,0.55711314]
[1773152114576,5.45562018,2016.0,2014.5,0.55711314]
[1773152114577,2.46260602,2015.7,2014.5,0.55711314]
[1773152114959,2.99301416,2016.0,2014.5,0.55711314]
[1773152115156,1.086,2015.9,2014.7,0.55711314]
[1773152115778,1.2402024,2015.8,2014.9,1.24075636]
[1773152115958,2.46260602,2015.6,2014.8,0.55711314]
[1773152116163,2.46260602,2015.6,2014.7,0.0011]
[1773152116650,2.46260602,2015.3,2014.7,0.0011]
[1773152117053,1.77161054,2015.8,2014.7,0.0011]
[1773152117277,2.46260602,2015.5,2014.7,0.0011]
[1773152117782,1.24063321,2015.1,2014.5,0.0011]
[1773152118566,1.24063321,2015.1,2014.2,0.0011]
[1773152118567,2.46260602,2014.7,2014.2,0.0011]
[1773152118872,2.46260602,2014.8,2013.6,1.79864231]
[1773152119067,1.77104135,2015.1,2013.7,0.55711314]
[1773152119068,1.086,2014.9,2013.7,0.55711314]
[1773152119500,1.086,2014.9,2013.9,0.55711314]
[1773152119858,3.70342396,2014.8,2013.9,1.79847256]
[1773152120360,2.46260602,2015.1,2014.0,0.03128405]
[1773152120561,2.46260602,2015.1,2014.0,0.55711314]
[1773152120562,2.32669478,2015.0,2014.0,0.55711314]
[1773152120772,1.24044854,2015.4,2014.2,0.55711314]
[1773152120981,3.70305456,2015.4,2014.2,0.55711314]
[1773152121187,0.001,2015.8,2014.3,0.55711314]
[1773152121188,1.24121782,2015.8,2014.3,0.55711314]
[1773152121348,2.32721782,2015.8,2014.3,0.55711314]
[1773152121551,2.46260602,2015.5,2014.3,0.55711314]
[1773152121981,2.46260602,2015.2,2014.3,0.55711314]
[1773152122182,1.24044854,2015.4,2013.9,0.55711314]
[1773152122183,2.46260602,2014.9,2013.9,0.55711314]
[1773152122553,0.53040814,2015.3,2013.9,0.55711314]
[1773152122862,1.086,2015.2,2014.0,0.04965243]
[1773152123169,2.46260602,2015.1,2014.0,0.04965243]
[1773152123375,2.46260602,2015.0,2014.0,0.04965243]
[1773152123585,2.46260602,2015.0,2013.9,0.55711314]
[1773152123760,2.46260602,2015.0,2013.7,1.24146787]
[1773152123761,2.46260602,2015.0,2013.7,1.79858101]
[1773152123964,1.086,2015.2,2013.8,0.55711314]
[1773152124175,1.24063321,2015.1,2013.9,1.24137246]
[1773152124583,2.46260602,2015.1,2014.0,0.55711314]
[1773152124755,2.46260602,2015.1,2013.6,2.46260602]
[1773152124756,2.46260602,2014.8,2013.6,0.55711314]
[1773152125282,4.23352425,2015.4,2013.9,0.55711314]
[1773152125660,2.46260602,2015.1,2013.9,0.55711314]
[1773152125986,6.69613027,2015.4,2013.5,1.79873221]
[1773152125987,2.99301416,2014.8,2013.5,1.79873221]
[1773152126186,2.46260602,2014.5,2013.5,1.79873221]
[1773152126385,1.24087953,2014.7,2013.5,1.79873221]
[1773152126874,1.24087953,2014.7,2013.6,0.01712624]
[1773152127577,1.24087953,2014.7,2013.6,0.57423938]
[1773152127774,2.46260602,2014.8,2013.6,0.57423938]
[1773152127978,2.32578056,2014.9,2013.6,0.55711314]
[1773152128159,4.9626687,2015.1,2013.9,0.55711314]
[1773152128485,4.9626687,2015.1,2014.0,0.60676557]
[1773152128691,0.001,2014.5,2014.0,0.04965243]
[1773152128889,0.001,2014.5,2013.7,0.0011]
[1773152128890,2.46260602,2014.4,2013.7,0.0011]
[1773152129087,0.001,2014.5,2013.7,0.0011]
[1773152130158,0.001,2014.5,2013.2,0.0011]
[1773152130159,2.99301416,2013.9,2013.2,0.0011]
[1773152130487,2.46260602,2013.6,2012.5,1.79934916]
[1773152130668,0.53040814,2013.8,2012.6,0.04968697]
[1773152130876,2.99301416,2013.7,2012.6,0.04968697]
[1773152131193,2.99301416,2013.7,2012.5,1.79934916]
[1773152131194,2.46260602,2013.4,2012.4,0.1642847]
[1773152131559,2.46260602,2013.1,2012.4,0.1642847]
[1773152131760,2.99301416,2013.1,2012.4,0.1642847]
[1773152131961,2.99301416,2013.1,2011.6,0.55711314]
[1773152131962,0.53040814,2012.7,2011.5,1.24280941]
[1773152132295,0.53040814,2012.7,2011.1,4.97239699]
[1773152132296,1.24223602,2012.5,2011.1,0.55711314]
[1773152132464,1.24223602,2012.5,2011.0,1.25159904]
[1773152132465,1.24192747,2013.0,2011.4,0.55711314]
[1773152132779,3.54660602,2013.1,2011.7,0.55711314]
[1773152132981,2.46260602,2012.8,2011.7,0.55711314]
[1773152133178,4.78849029,2013.1,2011.8,0.04970673]
[1773152133379,4.78849029,2013.1,2011.8,0.77138454]
[1773152133380,4.7884849,2013.1,2011.8,0.77138454]
[1773152133605,4.78847997,2013.1,2011.9,0.50255453]
[1773152133786,3.54660602,2013.1,2011.9,0.50255453]
[1773152133981,4.78847559,2013.1,2011.9,0.50255453]
[1773152134183,3.54660602,2013.1,2012.0,1.24254473]
[1773152134383,2.46260602,2013.0,2012.1,0.04969931]
[1773152134583,2.46260602,2013.0,2012.0,0.2142714]
[1773152134803,2.46260602,2013.0,2011.3,1.74548496]
[1773152134804,2.46260602,2012.4,2011.3,1.74548496]
[1773152135099,2.46260602,2012.4,2011.1,1.74565532]
[1773152136166,0.50684436,2013.4,2011.6,2.46260602]
[1773152136370,0.50684436,2013.4,2011.7,0.50255453]
[1773152136371,2.46260602,2013.1,2011.7,0.50255453]
[1773152137302,1.24174241,2013.3,2011.7,1.52255453]
[1773152137303,2.46260602,2012.9,2011.7,1.52255453]
[1773152137599,2.46260602,2012.6,2011.7,0.50255453]
[1773152137800,2.46260602,2012.6,2011.3,1.7455317]
[1773152138001,1.24174241,2013.3,2011.3,1.7455317]
[1773152138002,1.24174241,2013.3,2011.6,0.50255453]
[1773152138199,0.50684436,2013.4,2011.9,0.50255453]
[1773152138405,4.05245038,2014.2,2012.5,0.50255453]
[1773152138569,4.78679847,2014.2,2012.8,0.50255453]
[1773152138896,5.29364283,2014.2,2012.8,0.50255453]
[1773152139096,1.24106433,2014.4,2012.9,0.50255453]
[1773152139300,0.001,2014.5,2013.1,0.50255453]
[1773152139470,0.001,2014.5,2013.0,2.51228311]
[1773152139471,0.001,2014.5,2013.4,2.46260602]
[1773152139664,0.001,2014.5,2013.7,2.46260602]
[1773152139890,0.001,2014.5,2013.7,0.50255453]
[1773152140310,1.92328309,2015.2,2013.9,1.74392699]
[1773152140478,2.46260602,2014.8,2013.8,1.24139431]
[1773152140678,2.46260602,2014.8,2013.5,0.50255453]
[1773152140679,2.46260602,2014.8,2013.6,1.2415574]
[1773152141199,2.46260602,2015.0,2013.6,1.2415574]
[1773152141404,2.46260602,2014.4,2013.5,1.24158211]
[1773152141723,2.97411896,2014.7,2013.5,1.24158211]
[1773152141870,0.50684436,2014.7,2013.5,1.24158211]
[1773152142076,2.97411896,2014.7,2013.5,1.24158211]
[1773152142611,2.97411896,2014.7,2013.2,4.96713515]
[1773152142612,1.24094112,2014.6,2013.2,5.46968968]
[1773152142783,2.4672746,2014.1,2012.8,1.7446054]
[1773152142993,0.50684436,2014.4,2012.9,0.50255453]
[1773152143316,2.97411896,2014.4,2012.9,0.50255453]
[1773152144591,1.24112594,2014.3,2013.0,1.24192747]
[1773152144988,0.50684436,2013.9,2012.5,0.50255453]
[1773152145307,2.97411896,2013.7,2012.3,3.95674277]
[1773152145504,3.5472746,2014.0,2012.4,0.50255453]
[1773152146000,1.08,2014.0,2012.4,0.50255453]
[1773152146184,1.08,2014.0,2012.6,0.50255453]
[1773152146385,4.09844118,2014.0,2012.6,0.50255453]
[1773152146584,4.09844118,2014.0,2012.6,1.74469046]
[1773152146585,1.79253904,2013.9,2012.6,1.74469046]
[1773152146801,1.79253904,2013.9,2012.5,4.9686972]
[1773152146802,0.55116658,2013.7,2012.5,1.24220656]
[1773152146979,0.55116658,2013.7,2012.6,0.04968697]
[1773152147184,2.32135156,2014.0,2012.5,0.60522127]
[1773152147385,2.32131151,2014.0,2012.6,0.5555343]
[1773152147607,1.08,2014.0,2012.7,0.60521633]
[1773152147920,8.50995737,2014.7,2012.9,0.5555343]
[1773152148207,8.50995737,2014.7,2013.1,0.5555343]
[1773152148208,1.2409075,2014.7,2013.1,0.5555343]
[1773152148403,3.7081821,2014.7,2013.1,0.5555343]
[1773152148619,3.01844118,2014.4,2013.1,0.5555343]
[1773152148907,0.55116658,2014.3,2012.6,0.5555343]
[1773152150283,4.25934868,2014.7,2012.8,0.5555343]
[1773152150615,1.79207408,2014.7,2012.8,0.5555343]
[1773152150992,1.24100273,2014.5,2013.0,0.5555343]
[1773152152778,1.24100273,2014.5,2013.1,0.5555343]
[1773152153037,2.4672746,2014.3,2013.1,1.79738058]
[1773152153190,3.01844118,2014.3,2013.1,1.24185468]
[1773152153381,1.24100273,2014.5,2012.8,1.24205087]
[1773152153382,2.4672746,2014.0,2012.8,1.24205087]
[1773152153708,3.01844118,2014.0,2012.8,1.24205087]
[1773152154605,3.01844118,2014.0,2012.7,0.5555343]
[1773152154810,2.4672746,2013.7,2012.6,1.24323476]
[1773152155009,1.2415574,2013.6,2012.6,0.0011]
[1773152155210,6.04132023,2014.0,2012.6,0.0011]
[1773152155211,1.24118756,2014.2,2012.6,0.5566343]
[1773152155380,0.001,2014.3,2013.2,0.5555343]
[1773152155718,1.24212656,2014.3,2013.1,1.012]
[1773152156012,1.24212656,2014.3,2013.0,0.5555343]
[1773152156225,1.24212656,2014.3,2012.6,0.0011]
[1773152156226,2.46724699,2013.2,2012.6,0.0011]
[1773152156400,7.40174097,2014.0,2012.1,1.243549]
[1773152156401,2.46724699,2012.9,2012.1,0.0011]
[1773152156601,2.46724699,2012.6,2012.1,0.0011]
[1773152156926,0.55116658,2012.9,2012.1,1.24357239]
[1773152157124,2.46724699,2013.4,2012.1,0.0011]
[1773152157125,0.55116658,2013.0,2012.1,0.0011]
[1773152157281,2.46724699,2012.9,2012.1,0.0011]
[1773152157483,3.01841357,2012.9,2012.1,0.0011]
[1773152158087,0.55116658,2012.9,2012.1,0.0011]
[1773152159119,1.24205087,2012.8,2012.1,0.0011]
[1773152160320,1.24174241,2013.3,2012.1,0.0011]
[1773152160623,3.02826788,2012.9,2012.1,0.0011]
[1773152160816,2.46724699,2012.6,2012.1,0.0011]
[1773152161141,1.24218205,2012.6,2012.1,0.0011]
[1773152161415,2.46724699,2012.6,2011.9,0.0011]
[1773152161604,2.46724699,2012.6,2011.7,0.0011]
[1773152161605,2.46724699,2012.3,2011.7,0.0011]
[1773152161806,3.02826788,2012.3,2011.7,0.0011]
[1773152162117,0.56102089,2011.9,2010.4,3.74363794]
[1773152162325,2.46724699,2011.5,2010.3,1.24355902]
[1773152162519,0.56102089,2011.4,2009.8,13.0122517]
[1773152162721,3.02826788,2010.9,2009.8,1.24385337]
[1773152163024,3.86704498,2011.8,2009.3,4.97660993]
[1773152163025,1.24347177,2010.5,2009.3,4.97660993]
[1773152163518,1.074,2010.7,2009.4,0.55504471]
[1773152163727,0.56102089,2011.0,2009.4,0.53657917]
[1773152163911,2.46724699,2011.2,2009.5,0.51028218]
[1773152163912,1.24307468,2011.2,2009.5,0.51028218]
[1773152164310,3.71032167,2011.2,2009.5,0.51028218]
[1773152164510,6.55814144,2011.4,2009.8,0.51028218]
[1773152164511,1.074,2011.4,2009.8,0.51028218]
[1773152164731,2.31692071,2011.4,2009.8,0.51028218]
[1773152165090,2.46724699,2011.2,2009.9,1.75412515]
[1773152165288,0.51198552,2010.8,2009.5,1.24409056]
[1773152165538,2.46724699,2010.9,2009.6,0.51028218]
[1773152166036,2.97923251,2011.2,2009.6,0.51028218]
[1773152166586,0.51198552,2011.2,2009.6,0.51138218]
[1773152166983,0.001,2010.8,2009.6,0.51138218]
[1773152167286,4.96980473,2012.3,2009.6,0.51138218]
[1773152167287,1.75475372,2011.7,2010.1,0.51028218]
[1773152167503,0.51198552,2011.7,2010.3,0.51028218]
[1773152167751,1.75471727,2011.7,2010.3,0.51028218]
[1773152167952,1.75471707,2011.7,2010.3,0.51028218]
[1773152168250,0.51198552,2011.6,2010.2,0.51028218]
[1773152168457,0.51198552,2011.6,2009.7,1.24396676]
[1773152168458,0.51198552,2011.3,2009.8,0.51028218]
[1773152168615,0.51198552,2010.7,2009.6,1.24509483]
[1773152168937,0.51198552,2010.9,2009.6,1.24509483]
[1773152169134,2.46724699,2010.4,2009.6,0.0011]
[1773152169430,2.97923251,2010.4,2009.6,0.0011]
[1773152169628,1.75533214,2010.8,2009.6,0.0011]
[1773152169947,0.51198552,2010.8,2009.6,0.0011]
[1773152170113,0.51198552,2011.2,2009.6,0.51138218]
[1773152170436,1.75503065,2011.2,2009.6,0.51138218]
[1773152170604,0.51198552,2011.5,2009.7,0.51028218]
[1773152170807,1.75488241,2011.5,2009.7,0.51028218]
[1773152171206,4.97042303,2012.0,2009.7,0.51028218]
[1773152171207,0.51198552,2011.9,2010.4,0.51028218]
[1773152171533,4.22159199,2012.3,2010.5,0.51028218]
[1773152171730,0.51198552,2012.2,2010.5,0.51028218]
[1773152172030,2.46724699,2012.0,2010.5,0.51028218]
[1773152172231,2.97923251,2012.0,2010.5,0.51028218]
[1773152172435,2.97923251,2012.0,2010.6,0.51028218]
[1773152172436,0.51198552,2012.0,2010.6,0.51028218]
[1773152172632,2.97923251,2012.0,2010.6,0.51028218]
[1773152172825,0.51198552,2012.0,2010.6,0.51028218]
[1773152173022,2.49646909,2012.4,2010.6,0.51028218]
[1773152173221,7.94732262,2012.9,2011.1,0.51028218]
[1773152173420,1.24205087,2012.8,2011.1,0.51028218]
[1773152173605,2.46724699,2012.6,2011.1,0.51028218]
[1773152174011,0.51198552,2012.5,2011.0,0.51028218]
[1773152174241,1.24205087,2012.8,2011.3,0.51028218]
[1773152174606,1.75403639,2012.8,2011.3,0.51028218]
[1773152174831,0.51198552,2012.7,2011.3,0.51028218]
[1773152175346,0.51198552,2012.7,2011.4,1.24291538]
[1773152175560,2.46724699,2012.8,2011.4,1.24291538]
[1773152175764,2.46724699,2012.5,2011.4,1.24291538]
[1773152176040,0.51198552,2012.5,2011.2,4.9719567]
[1773152176825,2.46724699,2012.8,2011.2,5.48223888]
[1773152177024,0.51198552,2012.9,2011.3,0.51028218]
[1773152177238,2.46724699,2012.7,2011.4,1.24291538]
[1773152177535,3.56546909,2013.2,2011.5,0.51028218]
[1773152177536,2.46724699,2013.1,2011.5,0.51028218]
[1773152177837,0.51198552,2012.9,2011.5,0.51028218]
[1773152178226,2.97923251,2012.9,2011.5,0.51028218]
[1773152178736,3.73828995,2013.2,2011.5,0.51028218]
[1773152178940,2.46724699,2013.0,2011.5,0.51028218]
[1773152179150,0.001,2012.5,2011.5,0.51028218]
[1773152179330,0.001,2012.5,2011.1,0.51028218]
[1773152179331,2.46724699,2012.4,2011.1,0.51028218]
[1773152179841,0.51298552,2012.5,2011.2,0.04972155]
[1773152180012,2.46724699,2012.4,2011.1,0.51028218]
[1773152180756,0.51298552,2012.5,2011.1,0.51028218]
[1773152181355,0.001,2012.5,2011.3,1.24297717]
[1773152181638,0.001,2012.5,2011.4,0.04971661]
[1773152182031,0.001,2012.5,2011.3,1.75325935]
[1773152182209,0.001,2012.5,2011.4,0.04971661]
[1773152182634,0.001,2012.5,2011.3,1.75325935]
[1773152182833,0.001,2012.5,2011.4,0.04971661]
[1773152183238,0.001,2012.5,2011.4,0.55999879]
[1773152183414,0.001,2012.5,2011.6,0.51028218]
[1773152183610,0.51198552,2013.6,2011.6,0.51028218]
[1773152183816,0.51198552,2013.3,2011.8,0.51028218]
[1773152184211,2.97923251,2013.1,2011.8,0.51028218]
[1773152184732,0.51198552,2013.1,2011.8,0.51028218]
[1773152185532,1.75386413,2013.1,2011.9,1.24260649]
[1773152185865,1.57698552,2013.9,2012.2,0.51028218]
[1773152186017,0.51198552,2013.7,2012.3,0.51028218]
[1773152186217,3.70868109,2013.8,2012.1,2.50721502]
[1773152186218,2.97923251,2013.5,2012.1,2.50721502]
[1773152186418,0.51198552,2013.4,2012.1,2.50721502]
[1773152187222,0.51198552,2013.4,2012.1,3.0174972]
[1773152187423,0.51198552,2013.4,2012.2,0.51028218]
[1773152187622,1.75371556,2013.4,2012.3,1.24235948]
[1773152188451,1.24149575,2013.7,2012.3,1.75264166]
[1773152189120,0.51198552,2013.8,2012.4,0.51028218]
[1773152189327,2.72750898,2014.0,2012.4,0.51028218]
[1773152189328,0.51198552,2014.0,2012.4,0.51028218]
[1773152189527,1.24124919,2014.1,2011.1,1.24310079]
[1773152189528,2.46724699,2012.6,2011.1,1.24310079]
[1773152189751,2.46724699,2012.5,2011.1,1.75338297]
[1773152190051,0.51198552,2012.4,2011.1,1.24310079]
[1773152190431,0.51198552,2012.4,2011.1,1.75338297]
[1773152191024,1.57098552,2012.8,2011.2,0.51028218]
[1773152191225,0.51198552,2012.8,2011.2,0.51028218]
[1773152191827,0.51198552,2012.6,2011.3,1.24297717]
[1773152192918,0.51198552,2012.6,2011.3,1.75325935]
[1773152193319,0.51198552,2012.6,2011.2,1.0]
[1773152193524,0.51198552,2012.5,2011.1,1.0]
[1773152193947,1.78241801,2012.4,2011.2,1.24303898]
[1773152195254,1.78241801,2012.4,2011.3,1.0]
[1773152195456,3.00736725,2012.6,2011.2,2.24303898]
[1773152195757,3.00736725,2012.3,2011.1,1.24307577]
[1773152195956,3.00736725,2012.3,2011.0,0.0011]
[1773152195957,0.54012026,2012.0,2011.0,0.0011]
[1773152196170,3.00736725,2011.7,2011.0,0.0011]
[1773152196463,0.54012026,2011.6,2011.0,0.0011]
[1773152196755,0.54012026,2011.6,2010.8,0.0011]
[1773152197132,3.00736725,2011.4,2010.8,0.0011]
[1773152197324,0.54012026,2011.4,2010.8,0.0011]
[1773152197563,0.54012026,2011.8,2010.8,1.24437094]
[1773152197875,1.24248297,2012.1,2010.9,1.02673727]
[1773152198062,0.54012026,2012.6,2011.0,0.52330477]
[1773152198412,0.54012026,2012.3,2010.8,1.0001]
[1773152198714,0.54012026,2012.3,2010.9,0.999]
[1773152199405,0.54012026,2012.3,2010.8,0.0011]
[1773152199601,0.54012026,2012.3,2011.0,0.52330477]
[1773152199816,0.54012026,2012.7,2011.0,0.52330477]
[1773152200098,1.2421743,2012.6,2011.2,0.52330477]
[1773152200307,2.46724699,2012.5,2011.2,0.52330477]
[1773152200609,1.78229456,2012.6,2010.9,1.24318166]
[1773152200610,0.54012026,2012.1,2010.9,1.24318166]
[1773152201105,0.54012026,2012.1,2011.0,0.999]
[1773152201310,4.9696972,2013.0,2011.1,0.52330477]
[1773152201311,0.54012026,2012.8,2011.1,0.52330477]
[1773152201604,0.54012026,2012.8,2011.0,3.46624699]
[1773152201605,0.001,2013.0,2011.4,0.52330477]
[1773152201763,1.2429461,2013.0,2011.7,0.52330477]
[1773152201970,0.001,2013.0,2011.8,2.76397302]
[1773152202197,0.54112026,2013.0,2011.8,1.24266825]
[1773152203277,0.54012026,2012.9,2011.5,1.24285359]
[1773152203622,0.54012026,2012.6,2011.4,1.24287145]
[1773152203767,0.54012026,2012.6,2011.1,2.24110079]
[1773152203971,0.54012026,2012.4,2011.1,2.24110079]
[1773152204399,1.24223602,2012.5,2011.2,0.52330477]
[1773152204689,4.9686972,2012.7,2011.3,0.52440477]
[1773152204893,0.001,2012.6,2011.3,0.52440477]
[1773152205115,0.001,2012.6,2011.5,0.52330477]
[1773152205921,0.001,2012.6,2011.6,1.2427918]
[1773152206093,0.001,2012.6,2011.5,1.24282322]
[1773152206523,0.5002716,2012.6,2011.5,1.24282322]
[1773152207322,0.5002716,2012.6,2011.4,1.24287519]
[1773152207526,0.5002716,2012.6,2011.3,1.24404829]
[1773152207690,2.96651859,2012.1,2011.3,0.0011]
[1773152207886,1.24254473,2012.0,2011.3,0.0011]
[1773152208091,4.97007199,2012.2,2011.3,0.0011]
[1773152208092,0.4992716,2012.3,2011.3,0.0011]
[1773152208291,5.46827168,2012.5,2011.3,0.0011]
[1773152208528,0.4992716,2012.4,2011.3,0.0011]
[1773152209121,4.96900008,2012.5,2011.3,0.0011]
[1773152209625,1.24223602,2012.5,2011.3,0.0011]
[1773152209822,0.001,2012.6,2011.3,0.50602375]
[1773152210135,0.001,2013.0,2011.6,0.50492375]
[1773152210626,0.001,2013.0,2011.7,1.50092375]
[1773152210831,0.001,2013.0,2011.8,0.996]
[1773152211625,0.001,2013.0,2011.9,0.50492375]
[1773152212114,0.001,2013.0,2012.0,2.23854473]
[1773152212290,0.001,2013.0,2012.1,0.50492375]
[1773152213097,1.74086135,2013.6,2012.3,0.50492375]
[1773152213323,1.24141798,2013.9,2012.5,0.50492375]
[1773152213730,1.24141798,2013.9,2012.6,1.49992375]
[1773152214099,1.24141798,2013.9,2012.7,1.24211258]
[1773152214410,0.4992716,2013.8,2012.4,1.24229775]
[1773152214610,0.4992716,2013.5,2012.3,1.24231204]
[1773152214825,0.4992716,2013.5,2012.3,1.79693016]
[1773152215221,0.4992716,2013.5,2012.3,1.74723579]
[1773152215431,0.4992716,2013.5,2012.4,0.04969191]
[1773152215603,0.4992716,2013.5,2012.3,1.74723579]
[1773152215803,0.4992716,2013.5,2012.4,0.04062756]
[1773152216006,1.24149575,2013.7,2012.5,1.24223602]
[1773152216204,8.04368145,2013.8,2012.5,1.24223602]
[1773152216205,1.74075459,2013.8,2012.6,0.50492375]
[1773152216517,1.74075459,2013.8,2012.5,1.24223602]
[1773152216518,0.4992716,2013.7,2012.5,1.24223602]
[1773152216997,1.241436,2013.8,2012.6,0.50492375]
[1773152217404,1.24131082,2014.0,2012.6,0.50492375]
[1773152217604,1.7405525,2014.1,2012.8,0.50492375]
[1773152217808,0.4992716,2014.0,2012.5,1.29192546]
[1773152218044,0.4992716,2014.0,2012.7,0.995]
[1773152218223,1.24137246,2013.9,2012.8,1.24205087]
[1773152218422,1.74064406,2013.9,2012.8,1.24205087]
[1773152218624,1.24134375,2014.0,2012.8,1.24205087]
[1773152219132,1.24134375,2014.0,2012.8,1.74697462]
[1773152219702,0.4992716,2013.9,2012.7,0.995]
[1773152219905,0.4992716,2013.9,2012.7,2.23710847]
[1773152220321,1.24135071,2014.0,2012.7,2.74203222]
[1773152220608,1.24135071,2014.0,2012.8,0.50492375]
[1773152220809,0.4992716,2013.9,2012.7,1.24210847]
[1773152221045,0.4992716,2013.9,2012.7,1.74703222]
[1773152221262,1.24135071,2014.0,2012.8,0.50492375]
[1773152221830,1.74062231,2014.0,2012.9,0.994]
[1773152222432,0.4992716,2014.0,2013.0,0.994]
[1773152222614,4.96487241,2014.2,2013.0,1.49892375]
[1773152222615,1.24128758,2014.1,2013.0,1.49892375]
[1773152222820,1.24128758,2014.1,2012.6,7.43600577]
[1773152222821,0.4992716,2014.0,2012.6,2.9724215]
[1773152223046,0.4992716,2013.9,2012.7,5.96232952]
[1773152223714,1.24128758,2014.1,2012.8,0.49190924]
[1773152223942,0.001,2014.3,2013.2,0.49190924]
[1773152224246,1.24213191,2014.3,2013.3,0.994]
[1773152224431,0.001,2014.3,2013.4,1.24168073]
[1773152224914,0.001,2014.3,2013.4,1.73358997]
[1773152225114,2.85687941,2014.7,2013.4,1.73358997]
[1773152225115,0.36041032,2014.7,2013.8,0.49190924]
[1773152225351,7.93891057,2015.8,2013.8,0.49190924]
[1773152225352,4.96208563,2015.3,2013.8,0.49190924]
[1773152225533,0.51282789,2015.4,2014.2,0.49190924]
[1773152225855,1.24045885,2015.4,2014.3,0.49190924]
[1773152226037,1.24045885,2015.4,2014.4,0.994]
[1773152226216,0.51382789,2015.8,2014.5,0.49190924]
[1773152226415,1.75309181,2015.7,2014.6,1.24094112]
[1773152226642,0.51282789,2015.7,2014.6,1.24094112]
[1773152226836,1.24125086,2015.8,2014.6,1.24094112]
[1773152227215,1.75407875,2015.8,2014.6,1.24094112]
[1773152227559,1.75407875,2015.8,2014.6,1.73285036]
[1773152227560,1.24125086,2015.8,2014.6,1.73285036]
[1773152227950,0.001,2015.8,2014.7,0.49190924]
[1773152228166,0.001,2015.8,2014.6,1.24094112]
[1773152228167,1.24120295,2015.8,2014.6,1.24094112]
[1773152228349,1.24120295,2015.8,2014.1,2.47888154]
[1773152228350,0.51282789,2015.6,2014.1,2.47888154]
[1773152228542,0.51282789,2015.4,2014.2,0.994]
[1773152229333,0.51282789,2015.4,2014.1,1.24124643]
[1773152229334,0.51282789,2015.3,2014.1,1.24124643]
[1773152229654,0.51282789,2015.3,2014.1,1.73315567]
[1773152230031,1.75313968,2015.7,2014.3,0.49190924]
[1773152230282,0.001,2015.8,2014.9,0.49190924]
[1773152230432,1.48712498,2017.4,2015.3,1.24051009]
[1773152230433,1.23977188,2016.5,2015.3,1.24051009]
[1773152230860,1.75259977,2016.5,2015.3,2.23451009]
[1773152231060,1.75259977,2016.5,2015.3,1.24051009]
[1773152231300,1.75259977,2016.5,2015.4,0.994]
[1773152231477,1.23977188,2016.5,2015.4,0.994]
[1773152231766,1.23977188,2016.5,2015.3,2.23451009]
[1773152231931,2.6877629,2016.8,2015.6,2.46749775]
[1773152232140,2.6877629,2016.8,2015.3,2.23451009]
[1773152232141,1.75198526,2017.5,2016.2,2.46749775]
[1773152232352,0.51282789,2017.4,2016.0,0.49190924]
[1773152232549,1.75210811,2017.3,2016.3,2.2338558]
[1773152232947,0.51282789,2017.7,2016.3,5.19326279]
[1773152233267,2.98032564,2017.7,2016.3,1.2398558]
[1773152233469,0.51282789,2017.6,2016.2,2.23395635]
[1773152233959,0.51282789,2017.6,2016.3,0.49190924]
[1773152234167,1.23901629,2017.8,2016.3,0.49190924]
[1773152234370,1.23894447,2017.9,2016.5,2.46749775]
[1773152234533,1.23894447,2017.9,2016.6,0.49190924]
[1773152234732,1.23894447,2017.9,2016.7,1.23964893]
[1773152234935,0.001,2018.2,2017.2,0.49190924]
[1773152235574,1.23973849,2018.2,2017.3,0.994]
[1773152235774,1.23973849,2018.2,2016.8,0.49190924]
[1773152235942,1.23973849,2018.2,2017.2,0.994]
[1773152236287,0.001,2018.2,2017.2,0.994]
[1773152236488,1.239736,2018.2,2017.1,2.95940699]
[1773152236772,0.51282789,2018.1,2017.2,0.994]
[1773152236950,1.239736,2018.2,2016.8,2.72546223]
[1773152237146,1.75256389,2018.2,2016.8,2.72546223]
[1773152237768,0.51282789,2018.0,2016.8,1.23955299]
[1773152238157,0.001,2018.2,2016.9,0.49190924]
[1773152238361,0.001,2018.2,2017.2,0.49190924]
[1773152238750,0.001,2018.2,2017.4,1.23921879]
[1773152239473,0.001,2018.2,2017.5,0.993]
[1773152239640,0.001,2018.2,2017.4,1.23921879]
[1773152239641,0.51282789,2018.7,2017.4,1.23921879]
[1773152239849,0.51282789,2018.6,2017.4,2.23221879]
[1773152240044,0.51282789,2018.6,2017.1,0.993]
[1773152240749,0.001,2018.0,2017.1,0.993]
[1773152240965,0.001,2018.0,2017.2,1.7312509]
[1773152241175,0.001,2018.0,2017.2,2.23234166]
[1773152241544,0.001,2018.0,2017.2,2.7242509]
[1773152241841,0.001,2018.0,2017.2,1.7312509]
[1773152242043,0.51382789,2018.0,2016.9,5.95105617]
[1773152242281,0.51382789,2018.0,2016.9,0.993]